[Event "Early Titled Tuesday Blitz | February 8 2022"]
[White "Loy, Konstantin"]
[Black "Mamontova, Anastasia"]
[WhiteFideId "14122499"]
[BlackFideId "34100234"]
[WhiteElo "2084"]
[BlackElo "1933"]
[Result "1-0"]
[Round "03"]
[TimeControl "180+1"]
[Date "2022.02.08"]
[WhiteClock "0:00:07"]
[BlackClock "0:00:18"]

1. e4 {[%clk 0:03:00]}  c6 {[%clk 0:02:59]} 2. d4 {[%clk 0:03:00]}  d5 {[%clk 0:03:00]} 3. exd5 {[%clk 0:03:00]}  cxd5 {[%clk 0:03:00]} 4. c4 {[%clk 0:03:00]}  Nc6 {[%clk 0:03:00]} 5. Nc3 {[%clk 0:02:58]}  Nf6 {[%clk 0:03:00]} 6. Bg5 {[%clk 0:02:56]}  Be6 {[%clk 0:03:00]} 7. Nf3 {[%clk 0:02:56]}  g6 {[%clk 0:02:55]} 8. Qb3 {[%clk 0:02:55]}  dxc4 {[%clk 0:02:51]} 9. Bxc4 {[%clk 0:02:50]}  Bxc4 {[%clk 0:02:40]} 10. Qxc4 {[%clk 0:02:49]}  Rc8 {[%clk 0:02:40]} 11. Bxf6 {[%clk 0:02:37]}  exf6 {[%clk 0:02:40]} 12. O-O {[%clk 0:02:37]}  Be7 {[%clk 0:02:39]} 13. d5 {[%clk 0:02:17]}  Ne5 {[%clk 0:02:37]} 14. Qa4+ {[%clk 0:02:06]}  Qd7 {[%clk 0:02:31]} 15. Qxd7+ {[%clk 0:01:57]}  Kxd7 {[%clk 0:02:29]} 16. Nd4 {[%clk 0:01:34]}  a6 {[%clk 0:02:26]} 17. Rac1 {[%clk 0:01:28]}  Nd3 {[%clk 0:02:17]} 18. Rc2 {[%clk 0:01:23]}  Rc4 {[%clk 0:02:12]} 19. Nde2 {[%clk 0:01:19]}  Rhc8 {[%clk 0:02:10]} 20. Rd1 {[%clk 0:01:17]}  Nb4 {[%clk 0:02:05]} 21. Rcd2 {[%clk 0:01:15]}  Bd6 {[%clk 0:02:03]} 22. a3 {[%clk 0:01:07]}  Rh4 {[%clk 0:01:29]} 23. g3 {[%clk 0:01:04]}  Rh5 {[%clk 0:01:27]} 24. axb4 {[%clk 0:01:02]}  Bxb4 {[%clk 0:01:27]} 25. Kg2 {[%clk 0:00:56]}  Rc4 {[%clk 0:01:20]} 26. Rd4 {[%clk 0:00:56]}  Rxd4 {[%clk 0:01:19]} 27. Rxd4 {[%clk 0:00:55]}  Bc5 {[%clk 0:01:19]} 28. Rc4 {[%clk 0:00:53]}  b6 {[%clk 0:01:19]} 29. b4 {[%clk 0:00:48]}  Bd6 {[%clk 0:01:15]} 30. Rc6 {[%clk 0:00:48]}  Rxd5 {[%clk 0:01:07]} 31. Rxb6 {[%clk 0:00:43]}  Rd2 {[%clk 0:01:06]} 32. Rxa6 {[%clk 0:00:42]}  Bxb4 {[%clk 0:01:06]} 33. Ra4 {[%clk 0:00:34]}  Bc5 {[%clk 0:01:04]} 34. Ne4 {[%clk 0:00:25]}  Rxe2 {[%clk 0:01:01]} 35. Nxc5+ {[%clk 0:00:25]}  Kd6 {[%clk 0:01:00]} 36. Nd3 {[%clk 0:00:25]}  Re7 {[%clk 0:00:54]} 37. Ra6+ {[%clk 0:00:24]}  Kd5 {[%clk 0:00:53]} 38. Rxf6 {[%clk 0:00:24]}  Kd4 {[%clk 0:00:53]} 39. Rf3 {[%clk 0:00:23]}  f5 {[%clk 0:00:50]} 40. h4 {[%clk 0:00:23]}  Ra7 {[%clk 0:00:43]} 41. Nf4 {[%clk 0:00:23]}  Ke5 {[%clk 0:00:34]} 42. Re3+ {[%clk 0:00:23]}  Kf6 {[%clk 0:00:33]} 43. Re6+ {[%clk 0:00:22]}  Kf7 {[%clk 0:00:34]} 44. Rb6 {[%clk 0:00:22]}  Rd7 {[%clk 0:00:31]} 45. Nh3 {[%clk 0:00:21]}  Kg7 {[%clk 0:00:28]} 46. Rb5 {[%clk 0:00:17]}  Re7 {[%clk 0:00:27]} 47. h5 {[%clk 0:00:15]}  Kh6 {[%clk 0:00:25]} 48. hxg6 {[%clk 0:00:15]}  hxg6 {[%clk 0:00:25]} 49. Rb6 {[%clk 0:00:16]}  Rg7 {[%clk 0:00:22]} 50. Nf4 {[%clk 0:00:15]}  Kh7 {[%clk 0:00:23]} 51. Kf3 {[%clk 0:00:11]}  Kh6 {[%clk 0:00:21]} 52. Ne6 {[%clk 0:00:09]}  Re7 {[%clk 0:00:20]} 53. Nd4 {[%clk 0:00:09]}  Kg7 {[%clk 0:00:19]} 54. Rb5 {[%clk 0:00:07]}  Re4 {[%clk 0:00:18]} 55. Nxf5+ {[%clk 0:00:06]}  gxf5 {[%clk 0:00:18]} 56. Rxf5 {[%clk 0:00:07]}  Ra4 {[%clk 0:00:17]} 57. Rf4 {[%clk 0:00:07]}  Ra3+ {[%clk 0:00:18]} 58. Kg4 {[%clk 0:00:08]}  Ra5 {[%clk 0:00:18]} 59. f3 {[%clk 0:00:08]}  Kg6 {[%clk 0:00:18]} 60. Rd4 {[%clk 0:00:08]}  Rg5+ {[%clk 0:00:18]} 61. Kh3 {[%clk 0:00:07]}  Rh5+ {[%clk 0:00:18]} 62. Rh4 {[%clk 0:00:08]}  Ra5 {[%clk 0:00:17]} 63. Rb4 {[%clk 0:00:07]}  Rh5+ {[%clk 0:00:17]} 64. Kg2 {[%clk 0:00:07]}  Ra5 {[%clk 0:00:17]} 65. g4 {[%clk 0:00:07]}  Kg5 {[%clk 0:00:17]} 66. Kg3 {[%clk 0:00:07]}  Ra1 {[%clk 0:00:17]} 67. f4+ {[%clk 0:00:06]}  Kg6 {[%clk 0:00:17]} 68. Rb6+ {[%clk 0:00:07]}  Kf7 {[%clk 0:00:18]} 69. Kh4 {[%clk 0:00:08]}  Rh1+ {[%clk 0:00:18]} 70. Kg5 {[%clk 0:00:08]}  Ra1 {[%clk 0:00:19]} 71. Rb7+ {[%clk 0:00:07]}  Ke6 {[%clk 0:00:19]} 72. f5+ {[%clk 0:00:08]}  Ke5 {[%clk 0:00:19]} 73. Re7+ {[%clk 0:00:08]}  Kd6 {[%clk 0:00:18]} 74. Re2 {[%clk 0:00:08]}  Rf1 {[%clk 0:00:19]} 75. f6 {[%clk 0:00:08]}  Kd7 {[%clk 0:00:19]} 76. Kg6 {[%clk 0:00:08]}  Rf4 {[%clk 0:00:20]} 77. g5 {[%clk 0:00:07]}  Kd6 {[%clk 0:00:20]} 78. f7 {[%clk 0:00:08]}  Rf3 {[%clk 0:00:20]} 79. Kg7 {[%clk 0:00:07]}  Kd7 {[%clk 0:00:18]} 80. f8=Q {[%clk 0:00:07]} 1-0


[Site "https://www.chess.com"]

[Event "Early Titled Tuesday Blitz | February 8 2022"]
[White "Madaminov, Mukhiddin"]
[Black "Kanyamarala, Trisha"]
[WhiteFideId "14210703"]
[BlackFideId "45004722"]
[WhiteElo "1916"]
[BlackElo "2002"]
[Result "1-0"]
[Round "03"]
[TimeControl "180+1"]
[Date "2022.02.08"]
[WhiteClock "0:00:32"]
[BlackClock "0:00:01"]

1. d4 {[%clk 0:03:00]}  Nf6 {[%clk 0:02:58]} 2. Nc3 {[%clk 0:02:59]}  d5 {[%clk 0:02:56]} 3. Bf4 {[%clk 0:02:58]}  e6 {[%clk 0:02:54]} 4. Nb5 {[%clk 0:02:57]}  Na6 {[%clk 0:02:53]} 5. e3 {[%clk 0:02:57]}  c6 {[%clk 0:02:52]} 6. Nc3 {[%clk 0:02:58]}  Nc7 {[%clk 0:02:50]} 7. Nf3 {[%clk 0:02:56]}  Bd6 {[%clk 0:02:50]} 8. Bd3 {[%clk 0:02:56]}  O-O {[%clk 0:02:48]} 9. e4 {[%clk 0:02:57]}  dxe4 {[%clk 0:02:47]} 10. Bxd6 {[%clk 0:02:57]}  Qxd6 {[%clk 0:02:42]} 11. Nxe4 {[%clk 0:02:57]}  Nxe4 {[%clk 0:02:39]} 12. Bxe4 {[%clk 0:02:58]}  Qb4+ {[%clk 0:02:38]} 13. c3 {[%clk 0:02:54]}  Qxb2 {[%clk 0:01:51]} 14. O-O {[%clk 0:02:53]}  f5 {[%clk 0:01:49]} 15. Bd3 {[%clk 0:02:36]}  Qxc3 {[%clk 0:01:47]} 16. Re1 {[%clk 0:02:36]}  Nd5 {[%clk 0:01:43]} 17. Rc1 {[%clk 0:02:35]}  Qa5 {[%clk 0:01:42]} 18. Ne5 {[%clk 0:02:33]}  Rd8 {[%clk 0:01:38]} 19. Bf1 {[%clk 0:02:31]}  Nf6 {[%clk 0:01:34]} 20. Re3 {[%clk 0:02:27]}  Qd5 {[%clk 0:01:25]} 21. Rg3 {[%clk 0:02:22]}  c5 {[%clk 0:01:12]} 22. Bc4 {[%clk 0:02:08]}  Qd6 {[%clk 0:01:04]} 23. Qd2 {[%clk 0:01:55]}  Ne4 {[%clk 0:00:41]} 24. Qf4 {[%clk 0:01:42]}  Nxg3 {[%clk 0:00:32]} 25. hxg3 {[%clk 0:01:43]}  Qxd4 {[%clk 0:00:25]} 26. Qxf5 {[%clk 0:01:37]}  Rf8 {[%clk 0:00:18]} 27. Bxe6+ {[%clk 0:01:36]}  Bxe6 {[%clk 0:00:16]} 28. Qxe6+ {[%clk 0:01:37]}  Kh8 {[%clk 0:00:16]} 29. Nf7+ {[%clk 0:01:38]}  Rxf7 {[%clk 0:00:16]} 30. Qxf7 {[%clk 0:01:39]}  h6 {[%clk 0:00:12]} 31. Kh2 {[%clk 0:01:16]}  Qf6 {[%clk 0:00:09]} 32. Qxb7 {[%clk 0:01:13]}  Rf8 {[%clk 0:00:07]} 33. f4 {[%clk 0:01:10]}  Qf5 {[%clk 0:00:06]} 34. Qxa7 {[%clk 0:01:07]}  Qh5+ {[%clk 0:00:05]} 35. Kg1 {[%clk 0:01:07]}  c4 {[%clk 0:00:05]} 36. Qd4 {[%clk 0:00:57]}  Re8 {[%clk 0:00:05]} 37. Qxc4 {[%clk 0:00:56]}  Qg4 {[%clk 0:00:03]} 38. Kf2 {[%clk 0:00:53]}  Qf5 {[%clk 0:00:02]} 39. Re1 {[%clk 0:00:50]}  Rf8 {[%clk 0:00:02]} 40. Kg1 {[%clk 0:00:46]}  Qg4 {[%clk 0:00:02]} 41. Kh2 {[%clk 0:00:45]}  Qh5+ {[%clk 0:00:02]} 42. Kg1 {[%clk 0:00:46]}  Qg4 {[%clk 0:00:02]} 43. Re3 {[%clk 0:00:47]}  Qh5 {[%clk 0:00:02]} 44. a4 {[%clk 0:00:45]}  Qd1+ {[%clk 0:00:03]} 45. Kf2 {[%clk 0:00:44]}  Qh5 {[%clk 0:00:03]} 46. Qb5 {[%clk 0:00:42]}  Qg4 {[%clk 0:00:03]} 47. Re8 {[%clk 0:00:41]}  Rxe8 {[%clk 0:00:02]} 48. Qxe8+ {[%clk 0:00:41]}  Kh7 {[%clk 0:00:03]} 49. Qe4+ {[%clk 0:00:42]}  Kh8 {[%clk 0:00:03]} 50. a5 {[%clk 0:00:42]}  Qc8 {[%clk 0:00:03]} 51. Qd5 {[%clk 0:00:36]}  Qa6 {[%clk 0:00:03]} 52. Kg1 {[%clk 0:00:34]}  Qa7+ {[%clk 0:00:03]} 53. Kh2 {[%clk 0:00:34]}  Qe7 {[%clk 0:00:02]} 54. a6 {[%clk 0:00:33]}  Qa7 {[%clk 0:00:02]} 55. Qb7 {[%clk 0:00:32]}  Qe3 {[%clk 0:00:01]} 56. a7 {[%clk 0:00:32]} 1-0


[Site "https://www.chess.com"]

[Event "Early Titled Tuesday Blitz | February 8 2022"]
[White "Maevsky, Nikolay"]
[Black "Abdrlauf, Elham"]
[WhiteFideId "4198220"]
[BlackFideId "1533533"]
[WhiteElo "2104"]
[BlackElo "2334"]
[Result "1-0"]
[Round "03"]
[TimeControl "180+1"]
[Date "2022.02.08"]
[WhiteClock "0:00:08"]
[BlackClock "0:00:03"]

1. d4 {[%clk 0:03:00]}  Nf6 {[%clk 0:02:59]} 2. Nf3 {[%clk 0:03:01]}  d5 {[%clk 0:03:00]} 3. e3 {[%clk 0:03:01]}  c5 {[%clk 0:03:00]} 4. c3 {[%clk 0:03:00]}  Nc6 {[%clk 0:03:00]} 5. dxc5 {[%clk 0:03:00]}  e5 {[%clk 0:02:58]} 6. b4 {[%clk 0:03:00]}  Qc7 {[%clk 0:02:52]} 7. Bb2 {[%clk 0:02:54]}  Bg4 {[%clk 0:02:49]} 8. Be2 {[%clk 0:02:54]}  Rd8 {[%clk 0:02:43]} 9. Nbd2 {[%clk 0:02:53]}  Be7 {[%clk 0:02:43]} 10. h3 {[%clk 0:02:53]}  Bh5 {[%clk 0:02:43]} 11. O-O {[%clk 0:02:53]}  O-O {[%clk 0:02:43]} 12. a3 {[%clk 0:02:48]}  Ne4 {[%clk 0:02:39]} 13. Re1 {[%clk 0:02:43]}  f5 {[%clk 0:02:38]} 14. Qc1 {[%clk 0:02:42]}  f4 {[%clk 0:02:30]} 15. exf4 {[%clk 0:02:38]}  Rxf4 {[%clk 0:02:31]} 16. Nxe4 {[%clk 0:02:31]}  Rxe4 {[%clk 0:02:06]} 17. c4 {[%clk 0:02:11]}  Rxe2 {[%clk 0:01:53]} 18. Rxe2 {[%clk 0:02:11]}  e4 {[%clk 0:01:54]} 19. cxd5 {[%clk 0:01:48]}  exf3 {[%clk 0:01:53]} 20. d6 {[%clk 0:01:49]}  Bxd6 {[%clk 0:01:48]} 21. cxd6 {[%clk 0:01:49]}  Qxd6 {[%clk 0:01:48]} 22. Qg5 {[%clk 0:01:39]}  Bg6 {[%clk 0:01:30]} 23. Ree1 {[%clk 0:01:24]}  fxg2 {[%clk 0:01:24]} 24. Rad1 {[%clk 0:01:02]}  Qxd1 {[%clk 0:01:22]} 25. Rxd1 {[%clk 0:01:03]}  Rxd1+ {[%clk 0:01:23]} 26. Kxg2 {[%clk 0:01:03]}  a6 {[%clk 0:01:13]} 27. h4 {[%clk 0:01:01]}  Rd7 {[%clk 0:01:04]} 28. h5 {[%clk 0:00:59]}  Be4+ {[%clk 0:01:04]} 29. f3 {[%clk 0:00:59]}  h6 {[%clk 0:01:03]} 30. Qe3 {[%clk 0:00:52]}  Bf5 {[%clk 0:00:46]} 31. Qe8+ {[%clk 0:00:47]}  Kh7 {[%clk 0:00:45]} 32. Qf8 {[%clk 0:00:35]}  Be6 {[%clk 0:00:40]} 33. Kg3 {[%clk 0:00:32]}  Rf7 {[%clk 0:00:37]} 34. Qd6 {[%clk 0:00:32]}  Bf5 {[%clk 0:00:25]} 35. a4 {[%clk 0:00:32]}  Bc2 {[%clk 0:00:10]} 36. b5 {[%clk 0:00:27]}  Ne7 {[%clk 0:00:10]} 37. Qe6 {[%clk 0:00:17]}  Nf5+ {[%clk 0:00:10]} 38. Kh3 {[%clk 0:00:14]}  Kg8 {[%clk 0:00:08]} 39. bxa6 {[%clk 0:00:11]}  bxa6 {[%clk 0:00:09]} 40. Qc8+ {[%clk 0:00:11]}  Kh7 {[%clk 0:00:09]} 41. Qxc2 {[%clk 0:00:11]}  g6 {[%clk 0:00:08]} 42. hxg6+ {[%clk 0:00:11]}  Kxg6 {[%clk 0:00:09]} 43. f4 {[%clk 0:00:11]}  a5 {[%clk 0:00:08]} 44. Be5 {[%clk 0:00:11]}  Kh7 {[%clk 0:00:07]} 45. Qe4 {[%clk 0:00:11]}  Kg6 {[%clk 0:00:05]} 46. Bc3 {[%clk 0:00:10]}  Kh7 {[%clk 0:00:01]} 47. Bxa5 {[%clk 0:00:09]}  h5 {[%clk 0:00:01]} 48. Bc3 {[%clk 0:00:09]}  Kg8 {[%clk 0:00:02]} 49. a5 {[%clk 0:00:09]}  Nh6 {[%clk 0:00:02]} 50. Qg6+ {[%clk 0:00:08]}  Kf8 {[%clk 0:00:03]} 51. Qxh6+ {[%clk 0:00:08]}  Ke7 {[%clk 0:00:03]} 52. Qg5+ {[%clk 0:00:08]} 1-0


[Site "https://www.chess.com"]

[Event "Early Titled Tuesday Blitz | February 8 2022"]
[White "Marcziter, Dmitrii"]
[Black "Demin, Vladimir"]
[WhiteFideId "13900765"]
[BlackFideId "4167457"]
[WhiteElo "2155"]
[BlackElo "2493"]
[Result "0-1"]
[Round "03"]
[TimeControl "180+1"]
[Date "2022.02.08"]
[WhiteClock "0:01:24"]
[BlackClock "0:01:08"]

1. d4 {[%clk 0:03:00]}  Nf6 {[%clk 0:02:14]} 2. c4 {[%clk 0:02:57]}  e5 {[%clk 0:02:12]} 3. dxe5 {[%clk 0:02:57]}  Ng4 {[%clk 0:02:11]} 4. e4 {[%clk 0:02:57]}  Nxe5 {[%clk 0:02:11]} 5. f4 {[%clk 0:02:56]}  Nec6 {[%clk 0:02:11]} 6. Be3 {[%clk 0:02:55]}  Na6 {[%clk 0:02:11]} 7. Nf3 {[%clk 0:02:53]}  Bc5 {[%clk 0:02:11]} 8. Qd2 {[%clk 0:02:51]}  O-O {[%clk 0:02:10]} 9. Bd3 {[%clk 0:02:49]}  Re8 {[%clk 0:02:10]} 10. O-O {[%clk 0:02:47]}  d6 {[%clk 0:02:11]} 11. Nc3 {[%clk 0:02:45]}  Bxe3+ {[%clk 0:02:11]} 12. Qxe3 {[%clk 0:02:45]}  Nc5 {[%clk 0:02:12]} 13. Bc2 {[%clk 0:02:44]}  Bf5 {[%clk 0:02:05]} 14. Rae1 {[%clk 0:02:34]}  a5 {[%clk 0:02:02]} 15. Qd2 {[%clk 0:02:30]}  Be6 {[%clk 0:02:02]} 16. b3 {[%clk 0:02:30]}  a4 {[%clk 0:02:00]} 17. Nd5 {[%clk 0:02:25]}  axb3 {[%clk 0:01:59]} 18. axb3 {[%clk 0:02:25]}  Ra2 {[%clk 0:01:56]} 19. Qc3 {[%clk 0:02:22]}  Nb8 {[%clk 0:01:37]} 20. b4 {[%clk 0:02:17]}  Ncd7 {[%clk 0:01:33]} 21. Bb3 {[%clk 0:02:15]}  Ra8 {[%clk 0:01:31]} 22. Ng5 {[%clk 0:02:06]}  Bxd5 {[%clk 0:01:26]} 23. exd5 {[%clk 0:02:04]}  Nf6 {[%clk 0:01:24]} 24. Rxe8+ {[%clk 0:02:02]}  Qxe8 {[%clk 0:01:25]} 25. Re1 {[%clk 0:02:01]}  Qf8 {[%clk 0:01:24]} 26. Bc2 {[%clk 0:01:59]}  h6 {[%clk 0:01:23]} 27. Ne4 {[%clk 0:01:56]}  Nbd7 {[%clk 0:01:21]} 28. Nxf6+ {[%clk 0:01:55]}  Nxf6 {[%clk 0:01:21]} 29. h3 {[%clk 0:01:55]}  Re8 {[%clk 0:01:21]} 30. Ba4 {[%clk 0:01:52]}  Rxe1+ {[%clk 0:01:20]} 31. Qxe1 {[%clk 0:01:52]}  Qa8 {[%clk 0:01:21]} 32. Bc2 {[%clk 0:01:48]}  Qa2 {[%clk 0:01:18]} 33. Bd3 {[%clk 0:01:45]}  Qb2 {[%clk 0:01:16]} 34. g4 {[%clk 0:01:37]}  Qd4+ {[%clk 0:01:15]} 35. Kg2 {[%clk 0:01:27]}  Qxd3 {[%clk 0:01:14]} 36. g5 {[%clk 0:01:24]}  hxg5 {[%clk 0:01:09]} 37. fxg5 {[%clk 0:01:24]}  Qe4+ {[%clk 0:01:08]} 0-1


[Site "https://www.chess.com"]

[Event "Early Titled Tuesday Blitz | February 8 2022"]
[White "Martin Duque, Jesus"]
[Black "Manelyuk, Daniil"]
[WhiteFideId "2208954"]
[BlackFideId "44173920"]
[WhiteElo "2243"]
[BlackElo "2222"]
[Result "0-1"]
[Round "03"]
[TimeControl "180+1"]
[Date "2022.02.08"]
[WhiteClock "0:00:10"]
[BlackClock "0:00:02"]

1. Nf3 {[%clk 0:02:59]}  Nf6 {[%clk 0:02:58]} 2. d4 {[%clk 0:02:59]}  c5 {[%clk 0:02:56]} 3. dxc5 {[%clk 0:02:59]}  Qa5+ {[%clk 0:02:55]} 4. Nbd2 {[%clk 0:02:56]}  Qxc5 {[%clk 0:02:55]} 5. a3 {[%clk 0:02:57]}  a5 {[%clk 0:02:53]} 6. g3 {[%clk 0:02:55]}  g6 {[%clk 0:02:53]} 7. Bg2 {[%clk 0:02:55]}  Bg7 {[%clk 0:02:53]} 8. O-O {[%clk 0:02:56]}  O-O {[%clk 0:02:53]} 9. c4 {[%clk 0:02:34]}  Qc7 {[%clk 0:02:16]} 10. Rb1 {[%clk 0:02:20]}  a4 {[%clk 0:02:13]} 11. Nd4 {[%clk 0:02:15]}  d6 {[%clk 0:02:11]} 12. Nb5 {[%clk 0:02:15]}  Qb6 {[%clk 0:01:58]} 13. Qc2 {[%clk 0:02:13]}  Nbd7 {[%clk 0:01:54]} 14. Nc3 {[%clk 0:02:11]}  Nc5 {[%clk 0:01:53]} 15. e4 {[%clk 0:02:03]}  Be6 {[%clk 0:01:49]} 16. Nd5 {[%clk 0:02:03]}  Bxd5 {[%clk 0:01:48]} 17. cxd5 {[%clk 0:02:01]}  Nfd7 {[%clk 0:01:45]} 18. Nc4 {[%clk 0:02:00]}  Qb3 {[%clk 0:01:41]} 19. Qxb3 {[%clk 0:01:57]}  Nxb3 {[%clk 0:01:41]} 20. Bg5 {[%clk 0:01:56]}  f6 {[%clk 0:01:38]} 21. Be3 {[%clk 0:01:56]}  Rfc8 {[%clk 0:01:37]} 22. Nb6 {[%clk 0:01:49]}  Nxb6 {[%clk 0:01:35]} 23. Bxb6 {[%clk 0:01:50]}  Nd2 {[%clk 0:01:31]} 24. Bh3 {[%clk 0:01:47]}  Rc4 {[%clk 0:01:18]} 25. Rbc1 {[%clk 0:01:42]}  Rxe4 {[%clk 0:01:17]} 26. Rfd1 {[%clk 0:01:34]}  Rc4 {[%clk 0:00:50]} 27. Be6+ {[%clk 0:01:27]}  Kf8 {[%clk 0:00:49]} 28. Be3 {[%clk 0:01:12]}  Nf3+ {[%clk 0:00:48]} 29. Kg2 {[%clk 0:01:11]}  Ne5 {[%clk 0:00:47]} 30. Bd4 {[%clk 0:01:03]}  Rxc1 {[%clk 0:00:20]} 31. Rxc1 {[%clk 0:01:04]}  f5 {[%clk 0:00:20]} 32. Rc7 {[%clk 0:01:01]}  Rb8 {[%clk 0:00:14]} 33. Ba7 {[%clk 0:01:02]}  Ra8 {[%clk 0:00:15]} 34. Rxb7 {[%clk 0:01:02]}  Nc4 {[%clk 0:00:15]} 35. Bd7 {[%clk 0:00:42]}  Nxb2 {[%clk 0:00:08]} 36. Bc6 {[%clk 0:00:33]}  Nc4 {[%clk 0:00:08]} 37. Bxa4 {[%clk 0:00:27]}  Nxa3 {[%clk 0:00:06]} 38. Bc6 {[%clk 0:00:23]}  Bf6 {[%clk 0:00:04]} 39. Rc7 {[%clk 0:00:23]}  Rd8 {[%clk 0:00:04]} 40. Bb6 {[%clk 0:00:17]}  Nc4 {[%clk 0:00:02]} 41. Ba7 {[%clk 0:00:14]}  Kg7 {[%clk 0:00:02]} 42. h4 {[%clk 0:00:15]}  h5 {[%clk 0:00:02]} 43. Rb7 {[%clk 0:00:14]}  Ne5 {[%clk 0:00:01]} 44. Bb6 {[%clk 0:00:14]}  Rc8 {[%clk 0:00:02]} 45. Rc7 {[%clk 0:00:13]}  Rxc7 {[%clk 0:00:02]} 46. Bxc7 {[%clk 0:00:14]}  Kf7 {[%clk 0:00:02]} 47. Bb5 {[%clk 0:00:14]}  Ng4 {[%clk 0:00:02]} 48. Bb6 {[%clk 0:00:14]}  Be5 {[%clk 0:00:02]} 49. Bc4 {[%clk 0:00:14]}  Nf6 {[%clk 0:00:02]} 50. f4 {[%clk 0:00:14]}  Bc3 {[%clk 0:00:02]} 51. Kf3 {[%clk 0:00:14]}  Bb4 {[%clk 0:00:03]} 52. Bd3 {[%clk 0:00:13]}  Bc5 {[%clk 0:00:03]} 53. Ba5 {[%clk 0:00:13]}  Ke8 {[%clk 0:00:02]} 54. Bc4 {[%clk 0:00:13]}  Kd7 {[%clk 0:00:03]} 55. Bc3 {[%clk 0:00:13]}  Kc8 {[%clk 0:00:03]} 56. Ba5 {[%clk 0:00:13]}  Kb7 {[%clk 0:00:03]} 57. Bd8 {[%clk 0:00:14]}  Ng8 {[%clk 0:00:02]} 58. Bb5 {[%clk 0:00:13]}  Kc8 {[%clk 0:00:01]} 59. Ba5 {[%clk 0:00:14]}  Nf6 {[%clk 0:00:02]} 60. Bc3 {[%clk 0:00:13]}  Nd7 {[%clk 0:00:02]} 61. Bg7 {[%clk 0:00:12]}  Nb6 {[%clk 0:00:03]} 62. Be8 {[%clk 0:00:12]}  Nxd5 {[%clk 0:00:03]} 63. Bxg6 {[%clk 0:00:13]}  Ne3 {[%clk 0:00:04]} 64. Bxh5 {[%clk 0:00:13]}  d5 {[%clk 0:00:04]} 65. Bg6 {[%clk 0:00:13]}  Kd7 {[%clk 0:00:03]} 66. h5 {[%clk 0:00:13]}  d4 {[%clk 0:00:04]} 67. h6 {[%clk 0:00:14]}  d3 {[%clk 0:00:04]} 68. Bc3 {[%clk 0:00:14]}  Bd4 {[%clk 0:00:02]} 69. Bd2 {[%clk 0:00:13]}  Nc4 {[%clk 0:00:02]} 70. Bc1 {[%clk 0:00:10]}  d2 {[%clk 0:00:02]} 71. Bxd2 {[%clk 0:00:11]}  Nxd2+ {[%clk 0:00:03]} 72. Ke2 {[%clk 0:00:11]}  Nc4 {[%clk 0:00:03]} 73. h7 {[%clk 0:00:12]}  e6 {[%clk 0:00:03]} 74. Bf7 {[%clk 0:00:12]}  Ke7 {[%clk 0:00:04]} 75. Bg8 {[%clk 0:00:11]}  Bg7 {[%clk 0:00:03]} 76. Kf3 {[%clk 0:00:11]}  Nd6 {[%clk 0:00:04]} 77. g4 {[%clk 0:00:11]}  fxg4+ {[%clk 0:00:04]} 78. Kxg4 {[%clk 0:00:12]}  Ne8 {[%clk 0:00:05]} 79. Kh5 {[%clk 0:00:11]}  Nf6+ {[%clk 0:00:04]} 80. Kg6 {[%clk 0:00:12]}  Bh8 {[%clk 0:00:05]} 81. f5 {[%clk 0:00:10]}  e5 {[%clk 0:00:05]} 82. Bc4 {[%clk 0:00:10]}  e4 {[%clk 0:00:05]} 83. Be2 {[%clk 0:00:10]}  Kd6 {[%clk 0:00:04]} 84. Kf7 {[%clk 0:00:10]}  Ke5 {[%clk 0:00:04]} 85. Kg6 {[%clk 0:00:10]}  Kf4 {[%clk 0:00:05]} 86. Ba6 {[%clk 0:00:09]}  e3 {[%clk 0:00:04]} 87. Be2 {[%clk 0:00:09]}  Kg3 {[%clk 0:00:04]} 88. Ba6 {[%clk 0:00:09]}  Kf2 {[%clk 0:00:03]} 89. Kf7 {[%clk 0:00:09]}  e2 {[%clk 0:00:03]} 90. Kg6 {[%clk 0:00:10]}  e1=Q {[%clk 0:00:02]} 91. Bc4 {[%clk 0:00:10]}  Qg1+ {[%clk 0:00:03]} 92. Kf7 {[%clk 0:00:10]}  Qe1 {[%clk 0:00:03]} 93. Be6 {[%clk 0:00:10]}  Qe5 {[%clk 0:00:03]} 94. Ke7 {[%clk 0:00:11]}  Qc7+ {[%clk 0:00:03]} 95. Kf8 {[%clk 0:00:10]}  Qg7# {[%clk 0:00:02]} 0-1


[Site "https://www.chess.com"]

[Event "Early Titled Tuesday Blitz | February 8 2022"]
[White "Martirosyan, Haik M."]
[Black "Odegov, Artem"]
[WhiteFideId "13306553"]
[BlackFideId "34183644"]
[WhiteElo "2735"]
[BlackElo "2277"]
[Result "1-0"]
[Round "03"]
[TimeControl "180+1"]
[Date "2022.02.08"]
[WhiteClock "0:01:47"]
[BlackClock "0:00:03"]

1. c4 {[%clk 0:03:00]}  Nf6 {[%clk 0:02:59]} 2. Nc3 {[%clk 0:03:01]}  g6 {[%clk 0:03:00]} 3. g3 {[%clk 0:03:00]}  Bg7 {[%clk 0:03:00]} 4. Bg2 {[%clk 0:03:00]}  O-O {[%clk 0:03:00]} 5. Nf3 {[%clk 0:03:00]}  c5 {[%clk 0:03:01]} 6. O-O {[%clk 0:02:58]}  Nc6 {[%clk 0:03:00]} 7. d3 {[%clk 0:02:58]}  d5 {[%clk 0:03:00]} 8. cxd5 {[%clk 0:02:58]}  Nxd5 {[%clk 0:03:01]} 9. Bd2 {[%clk 0:02:59]}  Bg4 {[%clk 0:02:34]} 10. h3 {[%clk 0:02:54]}  Be6 {[%clk 0:02:20]} 11. Ng5 {[%clk 0:02:51]}  Nxc3 {[%clk 0:02:20]} 12. bxc3 {[%clk 0:02:51]}  Bd7 {[%clk 0:02:17]} 13. Be3 {[%clk 0:02:43]}  b6 {[%clk 0:02:13]} 14. d4 {[%clk 0:02:43]}  cxd4 {[%clk 0:02:11]} 15. cxd4 {[%clk 0:02:43]}  Rc8 {[%clk 0:02:12]} 16. Qd2 {[%clk 0:02:40]}  Na5 {[%clk 0:02:03]} 17. Bf4 {[%clk 0:02:40]}  Bb5 {[%clk 0:01:57]} 18. Rfd1 {[%clk 0:02:36]}  Ba4 {[%clk 0:01:50]} 19. h4 {[%clk 0:02:25]}  Nc4 {[%clk 0:01:36]} 20. Qe1 {[%clk 0:02:23]}  Bxd1 {[%clk 0:01:33]} 21. Rxd1 {[%clk 0:02:24]}  Qd7 {[%clk 0:01:16]} 22. Bh3 {[%clk 0:02:23]}  f5 {[%clk 0:00:38]} 23. e4 {[%clk 0:02:23]}  e6 {[%clk 0:00:28]} 24. exf5 {[%clk 0:02:05]}  exf5 {[%clk 0:00:29]} 25. d5 {[%clk 0:02:05]}  Rfe8 {[%clk 0:00:23]} 26. Qb4 {[%clk 0:01:58]}  a5 {[%clk 0:00:17]} 27. Qb3 {[%clk 0:01:56]}  Rc5 {[%clk 0:00:11]} 28. Bg2 {[%clk 0:01:53]}  Nd6 {[%clk 0:00:07]} 29. Qxb6 {[%clk 0:01:51]}  Ne4 {[%clk 0:00:04]} 30. Nxe4 {[%clk 0:01:49]}  Rb5 {[%clk 0:00:04]} 31. Nf6+ {[%clk 0:01:48]}  Bxf6 {[%clk 0:00:04]} 32. Qxf6 {[%clk 0:01:47]}  Rb4 {[%clk 0:00:03]} 33. Be5 {[%clk 0:01:47]}  Rxe5 {[%clk 0:00:03]} 34. Qxe5 {[%clk 0:01:47]} 1-0


[Site "https://www.chess.com"]